fUST/lending_fUST_20250511
["ID","MTS","AMOUNT","RATE_DAILY","PERIOD"]
[360586991,1746897038779,-578.35,8.219e-05,2]
[360586992,1746897038789,-151.0,8.219e-05,2]
[360586993,1746897038798,-160.0,8.246e-05,2]
[360586994,1746897038807,-160.0,8.246e-05,2]
[360586995,1746897038816,-500.0,8.246e-05,2]
[360586996,1746897038826,-500.0,8.246e-05,2]
[360586997,1746897038836,-162.27646746,8.246e-05,2]
[360586998,1746897038847,-500.0,8.246e-05,2]
[360586999,1746897038856,-500.0,8.246e-05,2]
[360587000,1746897038865,-500.0,8.246e-05,2]
[360587001,1746897038876,-171.23993781,8.246e-05,2]
[360587002,1746897038885,-500.0,8.246e-05,2]
[360587003,1746897038895,-151.0,8.246e-05,2]
[360587004,1746897038904,-500.0,8.246e-05,2]
[360587005,1746897038913,-151.0,8.246e-05,2]
[360587006,1746897038923,-500.0,8.246e-05,2]
[360587007,1746897038932,-500.0,8.246e-05,2]
[360587008,1746897038941,-500.0,8.246e-05,2]
[360587009,1746897038950,-151.0,8.246e-05,2]
[360587010,1746897038960,-151.75860998,8.246e-05,2]
[360587011,1746897038969,-502.82546082,8.246e-05,2]
[360587012,1746897038979,-500.0,8.246e-05,2]
[360587013,1746897038988,-151.0,8.246e-05,2]
[360587014,1746897038997,-500.0,8.246e-05,2]
[360587015,1746897039008,-535.75707685,8.246e-05,2]
[360587016,1746897039018,-151.0,8.246e-05,2]
[360587017,1746897039027,-500.0,8.246e-05,2]
[360587018,1746897039040,-500.0,8.246e-05,2]
[360587019,1746897039049,-151.0,8.246e-05,2]
[360587020,1746897039058,-500.0,8.246e-05,2]
[360587021,1746897039068,-500.0,8.246e-05,2]
[360587022,1746897039077,-230.73169127,8.246e-05,2]
[360587023,1746897039088,-500.0,8.246e-05,2]
[360587024,1746897039097,-500.0,8.246e-05,2]
[360587025,1746897039107,-500.0,8.246e-05,2]
[360587026,1746897039116,-500.0,8.246e-05,2]
[360587027,1746897039126,-151.0,8.246e-05,2]
[360587028,1746897039136,-151.0,8.246e-05,2]
[360587029,1746897039146,-161.86605282,8.246e-05,2]
[360587030,1746897039155,-151.0,8.246e-05,2]
[360587031,1746897039165,-500.0,8.246e-05,2]
[360587032,1746897039176,-500.0,8.246e-05,2]
[360587033,1746897039185,-151.0,8.246e-05,2]
[360587034,1746897039194,-500.0,8.246e-05,2]
[360587035,1746897039204,-546.0,8.264e-05,2]
[360587036,1746897039213,-708.0,8.264e-05,2]
[360587037,1746897039226,-2239.0,8.264e-05,2]
[360587038,1746897039235,-484.941139,8.274e-05,2]
[360587039,1746897039245,-500.0,8.274e-05,2]
[360587040,1746897039255,-500.0,8.274e-05,2]
[360587041,1746897039264,-500.0,8.274e-05,2]
[360587042,1746897039273,-500.0,8.274e-05,2]
[360587043,1746897039282,-500.0,8.274e-05,2]
[360587044,1746897039291,-202.87901717,8.274e-05,2]
[360587045,1746897039300,-309.83990849,8.274e-05,2]
[360587046,1746897039309,-155.66977672,8.274e-05,2]
[360587047,1746897039318,-304.82527121,8.274e-05,2]
[360587048,1746897039328,-500.0,8.274e-05,2]
[360587049,1746897039339,-500.0,8.274e-05,2]
[360587050,1746897039348,-279.68451719,8.274e-05,2]
[360587051,1746897039359,-500.0,8.274e-05,2]
[360587052,1746897039368,-162.72214909,8.274e-05,2]
[360587053,1746897039378,-500.0,8.274e-05,2]
[360587054,1746897039388,-151.0,8.274e-05,2]
[360587055,1746897039400,-302.87939732,8.274e-05,2]
[360587056,1746897039415,-500.0,8.274e-05,2]
[360587057,1746897039425,-151.0,8.274e-05,2]
[360587058,1746897039435,-500.0,8.274e-05,2]
[360587059,1746897039444,-500.0,8.274e-05,2]
[360587060,1746897039454,-556.22267594,8.274e-05,2]
[360587061,1746897039463,-500.0,8.274e-05,2]
[360587062,1746897039473,-500.0,8.274e-05,2]
[360587063,1746897039482,-500.0,8.274e-05,2]
[360587064,1746897039491,-151.64811922,8.274e-05,2]
[360587065,1746897039500,-151.72080914,8.274e-05,2]
[360587066,1746897039510,-151.0,8.274e-05,2]
[360587067,1746897039519,-500.0,8.274e-05,2]
[360587068,1746897039530,-511.8454825,8.274e-05,2]
[360587069,1746897039539,-151.0,8.274e-05,2]
[360587070,1746897039548,-500.0,8.274e-05,2]
[360587071,1746897039560,-250.0,8.288e-05,2]
[360587072,1746897039570,-551.63499679,8.301e-05,2]
[360587073,1746897039581,-500.0,8.301e-05,2]
[360587074,1746897039593,-500.0,8.301e-05,2]
[360587075,1746897039602,-500.0,8.301e-05,2]
[360587076,1746897039611,-151.52296161,8.301e-05,2]
[360587077,1746897039621,-500.0,8.301e-05,2]
[360587078,1746897039630,-560.84172158,8.301e-05,2]
[360587079,1746897039640,-153.88958323,8.301e-05,2]
[360587080,1746897039651,-500.0,8.301e-05,2]
[360587081,1746897039660,-151.0,8.301e-05,2]
[360587082,1746897039669,-290.11450891,8.301e-05,2]
[360587083,1746897039678,-256.27309071,8.301e-05,2]
[360587084,1746897039688,-500.0,8.301e-05,2]
[360587085,1746897039698,-253.49533042,8.301e-05,2]
[360587086,1746897039709,-500.0,8.301e-05,2]
[360587087,1746897039719,-500.0,8.301e-05,2]
[360587088,1746897039733,-500.0,8.301e-05,2]
[360587089,1746897039744,-152.06258232,8.301e-05,2]
[360587090,1746897039756,-460.76690853,8.301e-05,2]
[360587092,1746897039768,-200.47743139,8.301e-05,2]
[360587093,1746897039778,-500.0,8.301e-05,2]
[360587094,1746897039787,-151.93879497,8.329e-05,2]
[360587095,1746897039797,-178.42235255,8.329e-05,2]
[360587096,1746897039806,-500.0,8.329e-05,2]
[360587097,1746897039815,-500.0,8.329e-05,2]
[360587099,1746897039824,-500.0,8.329e-05,2]
[360587101,1746897039834,-151.0,8.329e-05,2]
[360587103,1746897039846,-500.0,8.329e-05,2]
[360587105,1746897039855,-223.78541853,8.329e-05,2]
[360587107,1746897039864,-338.11880729,8.329e-05,2]
[360587109,1746897039875,-500.0,8.329e-05,2]
[360587111,1746897039884,-500.0,8.329e-05,2]
[360587113,1746897039893,-500.0,8.356e-05,2]
[360587115,1746897039903,-500.0,8.356e-05,2]
[360587117,1746897039913,-500.0,8.356e-05,2]
[360587119,1746897039922,-151.00952708,8.356e-05,2]
[360587121,1746897039931,-500.0,8.356e-05,2]
[360587123,1746897039941,-500.0,8.356e-05,2]
[360587124,1746897039951,-500.0,8.356e-05,2]
[360587127,1746897039960,-844.9938255,8.369e-05,2]
[360587129,1746897039971,-500.0,8.383e-05,2]
[360587130,1746897039980,-500.0,8.383e-05,2]
[360587132,1746897039989,-411.00410333,8.383e-05,2]
[360587134,1746897039999,-500.0,8.383e-05,2]
[360587136,1746897040009,-500.0,8.383e-05,2]
[360587138,1746897040019,-500.0,8.383e-05,2]
[360587140,1746897040028,-500.0,8.393e-05,2]
[360587142,1746897040037,-501.61457151,8.393e-05,2]
[360587144,1746897040046,-501.28201925,8.393e-05,2]
[360587146,1746897040055,-500.0,8.393e-05,2]
[360587148,1746897040065,-500.0,8.393e-05,2]
[360587150,1746897040073,-314.64919127,8.393e-05,2]
[360587152,1746897040083,-500.0,8.393e-05,2]
[360587154,1746897040094,-500.0,8.393e-05,2]
[360587156,1746897040103,-500.0,8.393e-05,2]
[360587158,1746897040113,-500.0,8.393e-05,2]
[360587160,1746897040122,-500.0,8.393e-05,2]
[360587162,1746897040131,-621.22040421,8.393e-05,2]
[360587164,1746897040140,-500.78546831,8.393e-05,2]
[360587166,1746897040149,-500.0,8.393e-05,2]
[360587168,1746897040158,-500.0,8.393e-05,2]
[360587170,1746897040167,-500.0,8.393e-05,2]
[360587172,1746897040176,-500.0,8.393e-05,2]
[360587173,1746897040186,-500.0,8.393e-05,2]
[360587174,1746897040196,-500.0,8.393e-05,2]
[360587175,1746897040205,-212.98140453,8.393e-05,2]
[360587176,1746897040214,-500.0,8.393e-05,2]
[360587177,1746897040223,-500.0,8.393e-05,2]
[360587178,1746897040233,-500.0,8.393e-05,2]
[360587179,1746897040242,-500.0,8.393e-05,2]
[360587180,1746897040251,-500.0,8.393e-05,2]
[360587181,1746897040260,-500.0,8.393e-05,2]
[360587182,1746897040269,-500.0,8.393e-05,2]
[360587183,1746897040278,-500.0,8.393e-05,2]
[360587184,1746897040287,-178.36608331,8.393e-05,2]
[360587185,1746897040296,-500.0,8.393e-05,2]
[360587186,1746897040306,-500.0,8.393e-05,2]
[360587187,1746897040315,-503.44736264,8.393e-05,2]
[360587188,1746897040324,-620.19431742,8.393e-05,2]
[360587189,1746897040333,-500.0,8.393e-05,2]
[360587190,1746897040344,-500.0,8.393e-05,2]
[360587191,1746897040356,-457.92337363,8.411e-05,2]
[360587192,1746897040365,-500.0,8.411e-05,2]
[360587193,1746897040374,-500.0,8.411e-05,2]
[360587194,1746897040383,-156.14815358,8.411e-05,2]
[360587196,1746897040392,-500.0,8.411e-05,2]
[360587198,1746897040401,-153583.23371929,8.412e-05,2]
[360587369,1746897042062,-400.0,8.219e-05,2]
[360587371,1746897042072,-8776.79676762,8.412e-05,2]
[360587563,1746897043732,-400.0,8.219e-05,2]
[360587566,1746897043742,-400.0,8.219e-05,2]
[360587568,1746897043752,-3265.67,8.219e-05,2]
[360587570,1746897043762,-967.42,8.219e-05,2]
[360587572,1746897043772,-400.0,8.219e-05,2]
[360587574,1746897043782,-481887.83081637,8.412e-05,2]
[360587797,1746897045941,-400.0,8.219e-05,2]
[360587803,1746897045989,-809.46,8.219e-05,2]
[360587805,1746897045999,-400.0,8.219e-05,2]
[360587807,1746897046008,-8893.15318798,8.412e-05,2]
[360588420,1746897052440,519.85,5.9e-05,14]
[360588451,1746897052744,519.85,6e-05,14]
[360588522,1746897053416,519.85,6.1e-05,14]
[360588552,1746897053710,519.85,6.1e-05,14]
[360591826,1746897152993,8000.0,0.00013,7]
[360591828,1746897353730,529.002145,7.216e-05,2]
[360591834,1746897591679,350.90513,7.17e-05,2]
[360591835,1746897652779,2887.9820759,7.202e-05,2]
[360591868,1746898107471,23125.9365152,7.397e-05,2]
[360591891,1746898123975,500.0,7.396e-05,2]
[360591892,1746898124580,406.88294905,7.396e-05,2]
[360591893,1746898125388,577.74186638,7.396e-05,2]
[360591894,1746898129580,578.77156336,7.396e-05,2]
[360591895,1746898129617,500.0,7.396e-05,2]
[360591896,1746898129677,500.0,7.396e-05,2]
[360591897,1746898129739,500.0,7.396e-05,2]
[360591898,1746898129779,322.68598704,7.396e-05,2]
[360591899,1746898129825,500.0,7.396e-05,2]
[360591900,1746898129898,500.0,7.396e-05,2]
[360591901,1746898136756,215.53215801,7.396e-05,2]
[360591905,1746898155122,500.0,7.396e-05,2]
[360591906,1746898155185,538.70590129,7.396e-05,2]
[360591907,1746898167308,499.99999999,7.396e-05,2]
[360592023,1746898232330,-300.0,8.108e-05,2]
[360592025,1746898232340,-255.0,8.108e-05,2]
[360592027,1746898232350,-400.0,8.108e-05,2]
[360592029,1746898232359,-2464.67825476,8.109e-05,2]
[360592031,1746898232370,-945.0,8.109e-05,2]
[360592592,1746898237920,-673.02816539,8.109e-05,2]
[360593130,1746898243490,-4962.59999999,8.109e-05,2]
[360593202,1746898244120,-21010.44431477,8.109e-05,2]
[360593204,1746898244130,-7320.63456147,8.119e-05,2]
[360593408,1746898246161,-19719.04250244,8.119e-05,2]
[360593527,1746898247562,-446.73770828,8.038e-05,2]
[360593889,1746898251125,-299.00468206,8.038e-05,2]
[360595106,1746898266152,-299.00468206,8.038e-05,2]
[360597687,1746898410226,-299.00468206,8.037e-05,2]
[360597688,1746898437538,2374.64983568,7.957e-05,2]
[360597690,1746898593613,-184.15549261,8.034e-05,2]
[360597691,1746898600915,-85.84450739,8.034e-05,2]
[360597692,1746898600942,-66.15549261,8.034e-05,2]
[360597693,1746898610600,-163.84450739,8.034e-05,2]
[360597695,1746898626129,-300.0,8.033e-05,2]
[360597696,1746898626155,-45.77978771,8.034e-05,2]
[360597697,1746898640676,-154.22021229,8.034e-05,2]
[360597698,1746898655687,-70.0,8.034e-05,2]
[360597699,1746898655712,-93.33699287,8.034e-05,2]
[360597700,1746898670644,-332.44202857,8.034e-05,2]
[360597701,1746898685742,-167.55797143,8.033e-05,2]
[360597702,1746898700649,-132.44202857,8.033e-05,2]
[360597703,1746898700674,-74.22097856,8.034e-05,2]
[360597704,1746898700696,-143.3571602,8.034e-05,2]
[360597705,1746898715690,-310.87178787,8.034e-05,2]
[360597706,1746898730645,-45.77105193,8.034e-05,2]
[360597707,1746898730669,-229.4135916,8.034e-05,2]
[360597708,1746898745886,-160.03811822,8.033e-05,2]
[360597709,1746898761376,-139.96188178,8.033e-05,2]
[360597710,1746898761403,-182.06551844,8.034e-05,2]
[360597711,1746898774925,482.06551844,7.954e-05,2]
[360597712,1746898775711,-88.52088996,8.034e-05,2]
[360597713,1746898775737,-196.58415662,8.034e-05,2]
[360597714,1746898790382,285.10504658,7.954e-05,2]
[360597715,1746898791691,-278.02171983,8.034e-05,2]
[360597716,1746898806025,-227.49163337,8.033e-05,2]
[360597717,1746898821764,-72.50836663,8.033e-05,2]
[360597718,1746898821786,-299.0,8.033e-05,2]
[360597719,1746898821810,-42.72084089,8.033e-05,2]
[360597720,1746898835708,-164.83253891,8.032e-05,2]
[360597721,1746898850839,-135.16746109,8.032e-05,2]
[360597722,1746898850862,-133.46380264,8.032e-05,2]
[360597723,1746898865735,-201.49405198,8.031e-05,2]
[360597725,1746898880690,-98.50594802,8.031e-05,2]
[360597726,1746898880713,-167.1239496,8.032e-05,2]
[360597727,1746898897093,-199.41224776,8.032e-05,2]
[360597728,1746898897121,-34.95785462,8.032e-05,2]
[360597729,1746898911271,-162.62436864,8.032e-05,2]
[360597730,1746898925664,-300.0,8.031e-05,2]
[360597731,1746898925687,-20.56316404,8.032e-05,2]
[360597732,1746898941258,-179.43683596,8.032e-05,2]
[360597733,1746898955621,-248.14222898,8.031e-05,2]
[360597734,1746898956125,-248.14222898,8.031e-05,2]
[360597735,1746898970682,-3.71554204,8.031e-05,2]
[360597736,1746898970706,-319.84161156,8.031e-05,2]
[360597737,1746898985756,-256.99569624,8.03e-05,2]
[360597738,1746899001294,-43.00430376,8.03e-05,2]
[360597739,1746899001317,-213.89203109,8.031e-05,2]
[360597740,1746899015609,-243.10366515,8.031e-05,2]
[360597743,1746899030684,-43.00430376,8.031e-05,2]
[360597744,1746899030706,-248.14222898,8.031e-05,2]
[360597745,1746899030729,-13.58886362,8.031e-05,2]
[360597746,1746899045621,-181.62220797,8.031e-05,2]
[360597747,1746899060683,-294.14217313,8.031e-05,2]
[360597748,1746899076383,-10.64675528,8.031e-05,2]
[360597749,1746899076408,-176.21107159,8.031e-05,2]
[360597750,1746899091990,-230.23822979,8.031e-05,2]
[360597751,1746899106235,-93.55069862,8.031e-05,2]
[360597752,1746899120684,-317.09605666,8.03e-05,2]
[360597753,1746899135650,-182.90394334,8.03e-05,2]
[360597755,1746899150678,-267.9280847,8.03e-05,2]
[360597756,1746899165646,-158.54802833,8.03e-05,2]
[360597757,1746899180853,-14.12471188,8.03e-05,2]
[360597758,1746899180875,-146.25700196,8.03e-05,2]
[360597760,1746899195628,-214.63063911,8.029e-05,2]
[360597761,1746899210739,-285.36936089,8.029e-05,2]
[360597762,1746899210764,-100.0,8.029e-05,2]
[360597763,1746899225630,-168.3775267,8.028e-05,2]
[360597789,1746899379665,10131.07024842,8.028e-05,10]
[360597790,1746899382235,1217.36736338,0.00013,7]
[360597799,1746899403652,-181.0,8.027e-05,2]
[360597800,1746899403680,-73.16120382,8.027e-05,2]
[360597829,1746899432179,-226.83879618,8.027e-05,2]
[360597830,1746899432193,-1200.0,8.027e-05,2]
[360597831,1746899432202,-300.0,8.027e-05,2]
[360597832,1746899432211,-994.5,8.028e-05,2]
[360597833,1746899432220,-500.0,8.028e-05,2]
[360597834,1746899432230,-500.0,8.028e-05,2]
[360597835,1746899432239,-500.0,8.028e-05,2]
[360597836,1746899432248,-500.0,8.028e-05,2]
[360597837,1746899432257,-500.0,8.028e-05,2]
[360597838,1746899432266,-500.0,8.028e-05,2]
[360597839,1746899432276,-500.0,8.028e-05,2]
[360597840,1746899432290,-500.0,8.028e-05,2]
[360597841,1746899432300,-511.11932674,8.028e-05,2]
[360597842,1746899432310,-500.0,8.028e-05,2]
[360597843,1746899432320,-500.0,8.028e-05,2]
[360597844,1746899432331,-500.0,8.028e-05,2]
[360597845,1746899432342,-500.0,8.028e-05,2]
[360597846,1746899432353,-500.0,8.028e-05,2]
[360597847,1746899432364,-500.0,8.028e-05,2]
[360597848,1746899432374,-500.0,8.028e-05,2]
[360597849,1746899432383,-500.0,8.028e-05,2]
[360597850,1746899432393,-296.85768581,8.028e-05,2]
[360597851,1746899432402,-500.0,8.028e-05,2]
[360597852,1746899432412,-500.0,8.028e-05,2]
[360597853,1746899432422,-500.0,8.028e-05,2]
[360597854,1746899432431,-500.0,8.028e-05,2]
[360597855,1746899432443,-500.0,8.028e-05,2]
[360597856,1746899432453,-500.0,8.028e-05,2]
[360597857,1746899432463,-500.0,8.028e-05,2]
[360597858,1746899432473,-500.0,8.028e-05,2]
[360597859,1746899432482,-483.61966012,8.028e-05,2]
[360597861,1746899432491,-500.0,8.028e-05,2]
[360597863,1746899432503,-500.0,8.028e-05,2]
[360597865,1746899432512,-500.0,8.028e-05,2]
[360597867,1746899432522,-500.0,8.028e-05,2]
[360597869,1746899432531,-500.0,8.028e-05,2]
[360597870,1746899432541,-500.0,8.028e-05,2]
[360597872,1746899432551,-500.0,8.028e-05,2]
[360597874,1746899432560,-500.0,8.028e-05,2]
[360597876,1746899432570,-500.0,8.028e-05,2]
[360597878,1746899432579,-500.0,8.028e-05,2]
[360597880,1746899432589,-500.0,8.028e-05,2]
[360597882,1746899432599,-500.0,8.028e-05,2]
[360597884,1746899432608,-500.0,8.028e-05,2]
[360597886,1746899432618,-500.0,8.028e-05,2]
[360597888,1746899432627,-500.0,8.028e-05,2]
[360597890,1746899432636,-170.66219384,8.028e-05,2]
[360597892,1746899432646,-500.0,8.028e-05,2]
[360597894,1746899432655,-500.0,8.028e-05,2]
[360597896,1746899432664,-500.0,8.028e-05,2]
[360597898,1746899432674,-500.0,8.028e-05,2]
[360597900,1746899432683,-500.0,8.028e-05,2]
[360597902,1746899432696,-500.0,8.028e-05,2]
[360597904,1746899432706,-500.0,8.028e-05,2]
[360597906,1746899432715,-500.0,8.028e-05,2]
[360597908,1746899432725,-500.0,8.028e-05,2]
[360597910,1746899432734,-500.0,8.028e-05,2]
[360597912,1746899432744,-500.0,8.028e-05,2]
[360597914,1746899432753,-287.06885113,8.028e-05,2]
[360597916,1746899432763,-500.0,8.028e-05,2]
[360597918,1746899432773,-450.0,8.028e-05,2]
[360597920,1746899432783,-500.0,8.028e-05,2]
[360597922,1746899432792,-500.0,8.028e-05,2]
[360597924,1746899432802,-500.0,8.028e-05,2]
[360597926,1746899432812,-500.0,8.028e-05,2]
[360597928,1746899432821,-500.0,8.028e-05,2]
[360597931,1746899432831,-500.0,8.028e-05,2]
[360597932,1746899432841,-500.0,8.028e-05,2]
[360597934,1746899432850,-500.0,8.028e-05,2]
[360597936,1746899432860,-500.0,8.028e-05,2]
[360597938,1746899432869,-400.0,8.029e-05,2]
[360597940,1746899432878,-286.72212679,8.029e-05,2]
[360597942,1746899432888,-500.0,8.029e-05,2]
[360597944,1746899432897,-574.2587524,8.029e-05,2]
[360597965,1746899433094,-500.0,8.029e-05,2]
[360597968,1746899433105,-18280.62394474,8.119e-05,2]
[360598328,1746899436903,-1790.66170063,8.119e-05,2]
[360598330,1746899436915,-3687.60221849,8.119e-05,2]
[360598460,1746899438175,-7364.2283896,8.119e-05,2]
[360598974,1746899443258,1000.0,7.928e-05,2]
[360599088,1746899444340,-59502.41083112,8.119e-05,2]
[360599090,1746899444353,-1966.64254171,8.119e-05,2]
[360599093,1746899444369,-1966.64254171,8.144e-05,2]
[360599095,1746899444382,-1966.64254171,8.169e-05,2]
[360599097,1746899444394,-1966.64254171,8.194e-05,2]
[360599099,1746899444406,-207.4,8.214e-05,2]
[360599102,1746899444418,-151.37591629,8.214e-05,2]
[360599104,1746899444431,-151.0,8.219e-05,2]
[360599106,1746899444443,-151.0,8.219e-05,2]
[360599108,1746899444456,-151.0,8.219e-05,2]
[360599110,1746899444469,-151.0,8.219e-05,2]
[360599113,1746899444482,-151.0,8.219e-05,2]
[360599115,1746899444494,-151.0,8.219e-05,2]
[360599118,1746899444506,-151.0,8.219e-05,2]
[360599121,1746899444519,-151.0,8.219e-05,2]
[360599125,1746899444530,-151.0,8.219e-05,2]
[360599129,1746899444542,-151.0,8.219e-05,2]
[360599134,1746899444554,-151.0,8.219e-05,2]
[360599139,1746899444567,-151.0,8.219e-05,2]
[360599142,1746899444579,-151.0,8.219e-05,2]
[360599146,1746899444590,-151.0,8.219e-05,2]
[360599148,1746899444602,-151.0,8.219e-05,2]
[360599150,1746899444613,-151.0,8.219e-05,2]
[360599153,1746899444625,-151.0,8.219e-05,2]
[360599156,1746899444637,-151.0,8.219e-05,2]
[360599160,1746899444649,-151.0,8.219e-05,2]
[360599163,1746899444661,-169.400802,8.219e-05,2]
[360599167,1746899444673,-169.400802,8.219e-05,2]
[360599170,1746899444684,-169.400802,8.219e-05,2]
[360599174,1746899444697,-169.400802,8.219e-05,2]
[360599176,1746899444709,-169.400802,8.219e-05,2]
[360599178,1746899444721,-169.400802,8.219e-05,2]
[360599180,1746899444733,-156.296959,8.219e-05,2]
[360599183,1746899444745,-151.0,8.219e-05,2]
[360599185,1746899444756,-151.0,8.219e-05,2]
[360599187,1746899444769,-201.194555,8.219e-05,2]
[360599189,1746899444781,-151.58914,8.219e-05,2]
[360599192,1746899444792,-400.0,8.219e-05,2]
[360599194,1746899444804,-400.0,8.219e-05,2]
[360599196,1746899444815,-400.0,8.219e-05,2]
[360599198,1746899444828,-400.0,8.219e-05,2]
[360599201,1746899444840,-650.48,8.219e-05,2]
[360599203,1746899444851,-400.0,8.219e-05,2]
[360599205,1746899444864,-400.0,8.219e-05,2]
[360599206,1746899444875,-400.0,8.219e-05,2]
[360599207,1746899444887,-400.0,8.219e-05,2]
[360599208,1746899444898,-483.21,8.219e-05,2]
[360599209,1746899444911,-400.0,8.219e-05,2]
[360599210,1746899444923,-400.0,8.219e-05,2]
[360599211,1746899444933,-400.0,8.219e-05,2]
[360599212,1746899444942,-400.0,8.219e-05,2]
[360599213,1746899444953,-400.0,8.219e-05,2]
[360599214,1746899444963,-348.26917293,8.219e-05,2]
[360599215,1746899444971,-492.86732542,8.219e-05,2]
[360599216,1746899444981,-537.76,8.219e-05,2]
[360599217,1746899444990,-400.0,8.219e-05,2]
[360599218,1746899444999,-400.0,8.219e-05,2]
[360599219,1746899445008,-400.0,8.219e-05,2]
[360599220,1746899445017,-400.0,8.219e-05,2]
[360599221,1746899445026,-400.0,8.219e-05,2]
[360599222,1746899445036,-400.0,8.219e-05,2]
[360599223,1746899445426,-400.0,8.219e-05,2]
[360599224,1746899445455,-151.0,8.219e-05,2]
[360599225,1746899445473,-247.249704,8.219e-05,2]
[360599226,1746899445482,-400.0,8.219e-05,2]
[360599227,1746899445492,-468.52,8.219e-05,2]
[360599228,1746899445501,-400.0,8.219e-05,2]
[360599229,1746899445511,-400.0,8.219e-05,2]
[360599230,1746899445520,-400.0,8.219e-05,2]
[360599232,1746899445530,-400.0,8.219e-05,2]
[360599234,1746899445540,-400.0,8.219e-05,2]
[360599236,1746899445550,-400.0,8.219e-05,2]
[360599238,1746899445559,-400.0,8.219e-05,2]
[360599240,1746899445569,-151.0,8.219e-05,2]
[360599242,1746899445578,-151.0,8.219e-05,2]
[360599244,1746899445588,-400.0,8.219e-05,2]
[360599246,1746899445598,-403.65264388,8.219e-05,2]
[360599248,1746899445609,-586.63,8.219e-05,2]
[360599250,1746899445620,-400.0,8.219e-05,2]
[360599251,1746899445630,-400.0,8.219e-05,2]
[360599253,1746899445639,-400.0,8.219e-05,2]
[360599256,1746899445649,-151.0,8.219e-05,2]
[360599259,1746899445659,-151.0,8.219e-05,2]
[360599261,1746899445669,-171.064177,8.219e-05,2]
[360599264,1746899445678,-400.0,8.219e-05,2]
[360599267,1746899445687,-1029.5,8.219e-05,2]
[360599270,1746899445698,-400.0,8.219e-05,2]
[360599273,1746899445707,-400.0,8.219e-05,2]
[360599275,1746899445716,-400.0,8.219e-05,2]
[360599277,1746899445726,-286.404785,8.219e-05,2]
[360599279,1746899445736,-400.0,8.219e-05,2]
[360599281,1746899445745,-151.0,8.219e-05,2]
[360599284,1746899445755,-151.0,8.219e-05,2]
[360599287,1746899445764,-151.0,8.219e-05,2]
[360599290,1746899445774,-151.0,8.219e-05,2]
[360599293,1746899445784,-400.0,8.219e-05,2]
[360599296,1746899445793,-400.0,8.219e-05,2]
[360599299,1746899445803,-453.15,8.219e-05,2]
[360599302,1746899445812,-400.0,8.219e-05,2]
[360599304,1746899445821,-177.47,8.219e-05,2]
[360599306,1746899445830,-400.0,8.219e-05,2]
[360599308,1746899445840,-507.22131932,8.219e-05,2]
[360599310,1746899445850,-400.0,8.219e-05,2]
[360599312,1746899445859,-400.0,8.219e-05,2]
[360599314,1746899445869,-176.230778,8.219e-05,2]
[360599316,1746899445879,-176.230778,8.219e-05,2]
[360599318,1746899445889,-176.230778,8.219e-05,2]
[360599320,1746899445900,-176.230778,8.219e-05,2]
[360599322,1746899445910,-176.230778,8.219e-05,2]
[360599324,1746899445919,-136.95982472,8.219e-05,2]
[360599327,1746899445937,-39.27095328,8.219e-05,2]
[360599329,1746899445951,-400.0,8.219e-05,2]
[360599330,1746899445960,-400.0,8.219e-05,2]
[360599332,1746899445971,-400.0,8.219e-05,2]
[360599334,1746899445981,-400.0,8.219e-05,2]
[360599336,1746899445991,-1066.77,8.219e-05,2]
[360599338,1746899446000,-480.82,8.219e-05,2]
[360599340,1746899446011,-400.0,8.219e-05,2]
[360599343,1746899446021,-400.0,8.219e-05,2]
[360599345,1746899446032,-400.0,8.219e-05,2]
[360599346,1746899446048,-400.0,8.219e-05,2]
[360599348,1746899446057,-400.0,8.219e-05,2]
[360599350,1746899446067,-151.0,8.219e-05,2]
[360599352,1746899446077,-264.380584,8.219e-05,2]
[360599354,1746899446088,-400.0,8.219e-05,2]
[360599356,1746899446098,-400.0,8.219e-05,2]
[360599358,1746899446108,-400.0,8.219e-05,2]
[360599361,1746899446118,-956.51,8.219e-05,2]
[360599363,1746899446129,-400.0,8.219e-05,2]
[360599365,1746899446138,-151.0,8.219e-05,2]